Cogmind - Beta 13 @@@ ROGUE MODE // 2024.05.31 @ 21:46:22 Player: wojo Result: Destroyed by G-34 Mercenary with Small Laser Performance ------------- Evolutions (1) 500 Regions Visited (3) 600 Robots Destroyed (44) 220 Value Destroyed (1071) 1071 Prototype IDs (2) 40 Alien Tech Used (0) 0 Bonus (27) 27 TOTAL SCORE: 2458 Bonus ------- High Alert Combat Kills 2 Follower Combat Kills 25 Cogmind --------- Core Integrity 0/400 Matter 281/300 Energy 159/265 System Corruption 3% Temperature Cool (49) Movement Treading (160) Location -9/Mines Parts ------- > --- POWER (1) -------- Improved Ion Engine > --- PROPULSION (3) --- Light Treads Light Treads Light Treads > --- UTILITY (3) ------ Large Storage Unit Shield Generator > --- WEAPON (2) ------- Improved EM Shotgun Improved Light Cannon > --- INVENTORY (15) --- Improved Ion Engine Improved Ion Engine Light Nuclear Core Aluminum Leg Improved Utility Shielding Reactive Plating Improved EM Shotgun Heavy Assault Rifle Improved Assault Rifle Grenade Launcher Mining Claw Peak State ------------ > --- POWER ------------ Improved Ion Engine > --- PROPULSION ------- Light Treads Light Treads Light Treads > --- UTILITY ---------- Large Storage Unit Visual Processing Unit High-powered Tractor Beam > --- WEAPON ----------- Improved EM Shotgun Improved EM Shotgun > --- INVENTORY -------- Improved Ion Engine Improved Ion Engine Improved Ion Engine Light Nuclear Core Aluminum Leg Improved Utility Shielding Reactive Plating Improved EM Shotgun Heavy Assault Rifle Improved Assault Rifle Improved Light Cannon Grenade Launcher Mining Claw [Rating: 18] Favorites ----------- Power Ion Engine Engine Ion Engine Propulsion Light Treads Treads Light Treads Leg Aluminum Leg Flight Unit Flight Unit Utility Large Storage Unit Device High-powered Tractor Beam Storage Large Storage Unit Processor Signal Interpreter Protection Reactive Plating Weapon Grenade Launcher Energy Gun Improved EM Shotgun Ballistic Gun Assault Rifle Ballistic Cannon Improved Light Cannon Launcher Grenade Launcher Slashing Weapon Mining Claw Build | -11 -10 -9 -9 ------- Run | Yrd Mat Mat Min Slots Evolved 2 | . . 2 . Power . | . . . . Propulsion 1 | . . 1 . Utility 1 | . . 1 . Weapon . | . . . . Parts Attached 39 | 7 6 26 . Power 5 | 2 . 3 . Engine 5 | 2 . 3 . Core . | . . . . Reactor . | . . . . Propulsion 8 | 2 . 6 . Treads 3 | . . 3 . Leg 4 | 2 . 2 . Wheel . | . . . . Hover . | . . . . Flight 1 | . . 1 . Utility 8 | 1 3 4 . Device 2 | . . 2 . Storage 3 | 1 2 . . Processor 2 | . 1 1 . Hackware . | . . . . Protection 1 | . . 1 . Artifact . | . . . . Weapon 18 | 2 3 13 . Energy Gun 4 | . . 4 . Energy Cannon . | . . . . Ballistic Gun 6 | 2 1 3 . Ballistic Cannon 2 | . . 2 . Launcher 5 | . 2 3 . Special Weapon . | . . . . Impact Weapon . | . . . . Slashing Weapon 1 | . . 1 . Piercing Weapon . | . . . . Special Melee Weapon . | . . . . Unidentified Prototypes 2 | . . 2 . Parts Lost 11 | . . 11 . Power 2 | . . 2 . Propulsion 4 | . . 4 . Utility . | . . . . Weapon 5 | . . 5 . Highest Loss Streak 7 | . . 7 . To Critical Strikes 1 | . . 1 . Average Slot Usage (%) 88 | . 98 84 88 Engine 11 | . 14 10 11 Treads 13 | . . 15 33 Leg 11 | . 28 7 . Flight 1 | . . 2 . Device 4 | . . 5 11 Storage 11 | . 14 11 11 Processor 9 | . 13 9 . Protection 1 | . . 2 . Energy Gun 3 | . . 3 11 Ballistic Gun 6 | . 7 7 . Ballistic Cannon 4 | . . 5 11 Launcher 6 | . 20 2 . Naked Turns . | . . . . Heaviest Build 38 | 14 31 38 36 Greatest Support 60 | 20 20 60 60 Greatest Overweight (x) 7 | 2 1 7 . Average Overweight (x) . | . . . . Largest Inventory Capacity 15 | 8 15 15 15 Average Capacity 14 | 7 13 15 15 Most Carried 13 | 4 7 13 11 Average Carried 6 | 2 5 6 11 Final Capacity 15 | 8 15 15 15 Final Carried 11 | 4 6 11 11 Class Distribution -------------------- 100% | Mutant Dominant Class ---------------- Mutant | -10/Materials Mutant | -9/Materials Mutant | -9/Mines Resources | -11 -10 -9 -9 ----------- Run | Yrd Mat Mat Min Matter Collected 855 | 190 35 608 22 Remotely 347 | . . 347 . Salvage Created 949 | . 209 658 82 Parts 70 | . 22 42 6 Haulers Intercepted . | . . . . Recyclers Shooed 2 | . . 2 . Parts Field Recycled . | . . . . Retrieved Matter . | . . . . Parts Self-Destructed . | . . . . Prevented . | . . . . Kills | -11 -10 -9 -9 ------- Run | Yrd Mat Mat Min Combat Hostiles Destroyed 33 | . 10 21 2 Melee 1 | . . 1 . Guns 9 | . 1 8 . Cannons 8 | . . 6 2 AOE 15 | . 9 6 . Classes Destroyed 10 | . 8 2 . Worker 3 | . 3 . . Builder 2 | . 1 1 . Tunneler 2 | . 2 . . Recycler 1 | . 1 . . Operator 1 | . 1 . . Watcher 2 | . 1 1 . Swarmer 11 | . 6 5 . Grunt 17 | . 4 11 2 Brawler 1 | . . 1 . Sentry 4 | . . 4 . Best Kill Streak 8 | . 8 7 2 Combat Bots Only 6 | . 3 6 2 Max Kills in Single Turn 4 | . 4 3 1 Gunslinging . | . . . . Exploded 2 | . 2 2 . Melee 1 | . . 1 . Uniques/NPCs Destroyed . | . . . . Combat | -11 -10 -9 -9 -------- Run | Yrd Mat Mat Min Hostile Shots Fired 241 | . 25 202 14 Missed 68 | . 6 57 5 Damage Taken 1935 | . 272 1581 82 Core 473 | . 67 376 30 Absorbed by Shields 45 | . . 15 30 Ignored by Resistances 15 | . . 15 . Core Remaining (%) 86 | 100 73 . . Volleys Fired 80 | . 20 55 5 Largest 2 | . 2 2 2 Hottest 90 | . 60 90 84 Shots Fired 130 | . 36 84 10 Gun 62 | . 7 50 5 Cannon 32 | . . 27 5 Launcher 36 | . 29 7 . Special . | . . . . Kinetic 78 | . 7 66 5 Thermal . | . . . . Explosive 36 | . 29 7 . Electromagnetic 16 | . . 11 5 Robot Hit Streak 16 | . 3 16 4 Robot Miss Streak 4 | . 4 2 3 Penetration Max . | . . . . Secondary Targets . | . . . . Shots Hit Robots 77 | . 13 57 7 Core Hits 71 | . 29 37 5 Critical Kills . | . . . . Critical Parts Destroyed . | . . . . Critical Strikes 2 | . . 1 1 Blast 2 | . . 1 1 Melee Attacks 2 | . . 2 . Impact . | . . . . Slashing 2 | . . 2 . Piercing . | . . . . Sneak Attacks . | . . . . Combat Hostiles . | . . . . Follow-up Attacks . | . . . . Damage Inflicted 2886 | . 1358 1396 132 Guns 447 | . 8 369 70 Cannons 507 | . . 445 62 Explosions 1906 | . 1350 556 . Melee . | . . . . Ramming 26 | . . 26 . Kinetic 753 | . 8 683 62 Thermal 57 | . . 57 . Explosive 1839 | . 1340 499 . Electromagnetic 211 | . 10 131 70 Impact . | . . . . Slashing . | . . . . Piercing . | . . . . Highest Corruption 3 | . 1 3 3 Average Corruption 2 | . 1 2 3 Corruption Purged . | . . . . Corruption Blocked . | . . . . Effects 13 | . 3 7 3 Message Errors 5 | . 1 2 2 Matter Fused 2 | . . 1 1 Heat Flow Errors 1 | . 1 . . Parts Rejected 1 | . . 1 . Data Loss (minor) 1 | . . 1 . Data Loss (major) 2 | . 1 1 . Misfires 1 | . . 1 . Overload Shots . | . . . . Overflow Damage 29 | . 27 2 . Projectiles . | . . . . Explosions 29 | . 27 2 . Melee . | . . . . Knockbacks 4 | . . 4 . Impact . | . . . . Kinetic 4 | . . 4 . Secondary . | . . . . Self-Inflicted Damage 168 | . 99 69 . Shots 11 | . 7 4 . Rammed 2 | . . 2 . Targets Rammed 5 | . . 5 . Kicked 3 | . . 3 . Crushed . | . . . . Highest Temperature 200 | . 200 75 80 Average Temperature 34 | . 57 26 31 Received Heat Transfer 570 | . 30 500 40 Siege Activations . | . . . . Robots Corrupted . | . . . . Combat Hostiles . | . . . . Parts Fried . | . . . . Impact Corruptions . | . . . . Robots Melted . | . . . . Combat Hostiles . | . . . . Parts Melted . | . . . . Heat Transferred 50 | . . 50 . Parts Sabotaged . | . . . . Parts Stolen . | . . . . Parts Stripped . | . . . . Power Chain Reactions 1 | . . 1 . Alert | -11 -10 -9 -9 ------- Run | Yrd Mat Mat Min Peak Influence 432 | . 428 432 213 Initial 126 | . . 126 124 Average 173 | . 175 182 188 Maximum Alert Level 2 | . 2 2 1 Low Security (%) 68 | 100 53 67 98 Level 1 24 | . 42 22 1 Level 2 6 | . 4 9 . Level 3 . | . . . . Level 4 . | . . . . Level 5 . | . . . . High Security . | . . . . Max Security . | . . . . Squads Dispatched 8 | . 2 6 . Investigation 4 | . 1 3 . Extermination . | . . . . Reinforcement 4 | . 1 3 . Assault . | . . . . Garrison . | . . . . Intercept . | . . . . Searches Triggered . | . . . . Construction Impeded 1 | . . 1 . Haulers Reinforced . | . . . . Active Scanning Responses . | . . . . Cargo Convoy Interrupts . | . . . . Stealth | -11 -10 -9 -9 --------- Run | Yrd Mat Mat Min Distress Signals 4 | . 2 2 . Communications Jammed . | . . . . Distress Signals . | . . . . Times Spotted 53 | . 14 35 4 Peak Tracking Total 6 | . 4 6 3 Tactical Retreats 3 | . . 3 . Traps | -11 -10 -9 -9 ------- Run | Yrd Mat Mat Min Traps Triggered 2 | . . 2 . Indirectly . | . . . . Trap Hack Attempts . | . . . . Triggered . | . . . . Disarmed . | . . . . Reprogrammed . | . . . . Reused . | . . . . Traps Extracted . | . . . . Installed . | . . . . Triggered . | . . . . Machines | -11 -10 -9 -9 ---------- Run | Yrd Mat Mat Min Machines Disabled 6 | . 3 3 . Max in Single Turn 1 | . 1 1 . Machines Repaired . | . . . . Machines Dismantled . | . . . . Machines Sabotaged . | . . . . Overloaded Fab Kills . | . . . . Hacking | -11 -10 -9 -9 --------- Run | Yrd Mat Mat Min Machines Accessed 7 | . 2 5 . Terminals 3 | . 1 2 . Fabricators . | . . . . Repair Stations . | . . . . Recycling Units 3 | . 1 2 . Scanalyzers 1 | . . 1 . Garrison Access . | . . . . Total Hacks 20 | . 6 14 . Successful 17 | . 5 12 . Failed 3 | . 1 2 . Catastrophic . | . . . . Database Lockouts . | . . . . Manual . | . . . . Terminals 7 | . 3 4 . Fabricators . | . . . . Repair Stations . | . . . . Recycling Units 7 | . 3 4 . Scanalyzers 6 | . . 6 . Garrison Access . | . . . . Terminal Hacks 4 | . 2 2 . Alert Level 2 | . 1 1 . Hauler Manifests 1 | . 1 . . Registered Components 1 | . . 1 . Fabricator Hacks . | . . . . Repair Station Hacks . | . . . . Recycling Unit Hacks 7 | . 3 4 . Process 2 | . 1 1 . Report Inventory 2 | . 1 1 . Retrieve Matter 2 | . 1 1 . Retrieve Components 1 | . . 1 . Scanalyzer 6 | . . 6 . Insert Component 3 | . . 3 . Analyze 3 | . . 3 . Garrison Access Hacks . | . . . . Unauthorized Hacks . | . . . . Terminals . | . . . . Fabricators . | . . . . Repair Stations . | . . . . Recycling Units . | . . . . Scanalyzers . | . . . . Garrison Access . | . . . . Data Cores Recovered . | . . . . Used . | . . . . Hacking Detections 6 | . 2 4 . Full Trace Events 5 | . 2 3 . Feedback Events 1 | . 1 . . Corruption 1 | . 1 . . Feedback Blocked . | . . . . Robot Schematics Acquired . | . . . . Robots Built . | . . . . Authchips . | . . . . Time . | . . . . Total Robot Build Rating . | . . . . Part Schematics Acquired 3 | . . 3 . Parts Built . | . . . . Authchips . | . . . . Time . | . . . . Total Part Build Rating . | . . . . Parts Repaired . | . . . . Time . | . . . . Parts Recycled . | . . . . Recycled Matter 238 | . 147 91 . Retrieved Matter 238 | . 147 91 . Retrieved Components 3 | . . 3 . Parts Scanalyzed 3 | . . 3 . Part Schematics Acquired 3 | . . 3 . Parts Damaged 1 | . . 1 . Bothacking | -11 -10 -9 -9 ------------ Run | Yrd Mat Mat Min Used RIF Installer . | . . . . Robots Hacked . | . . . . Non-combat . | . . . . Combat . | . . . . Robot Hacks Applied . | . . . . Relay Couplers Released . | . . . . Fabnet Peak Effective % . | . . . . Robots Rewired . | . . . . Allies Hacked . | . . . . Hacks Repelled . | . . . . Allies | -11 -10 -9 -9 -------- Run | Yrd Mat Mat Min Total Allies 2 | . . . 2 Largest Group 2 | . . . 2 Highest-Rated Group 45 | . . . 45 Highest-Rated Ally 31 | . . . 31 Total Orders . | . . . . Ally Attacks 7 | . . . 7 Total Damage 105 | . . . 105 Kills 1 | . . . 1 Allies Corrupted . | . . . . Allies Melted . | . . . . Intel | -11 -10 -9 -9 ------- Run | Yrd Mat Mat Min Robot Analysis Total . | . . . . Derelict Logs Recovered 1 | . . . 1 Drone Launches . | . . . . Drone Recoveries . | . . . . Exploration | -11 -10 -9 -9 ------------- Run | Yrd Mat Mat Min Turns Passed 1970 | 82 486 1201 201 Spaces Moved 905 | 59 239 491 116 Core 15 | 8 . 7 . Treads 411 | . . 295 116 Legs 474 | 51 239 184 . Wheels . | . . . . Hover . | . . . . Flight 5 | . . 5 . Fastest Speed 50 | 50 120 160 160 Average Speed 184 | 118 175 203 160 Slowest Speed 440 | 150 190 440 160 Overloaded Moves . | . . . . Propulsion Burnouts . | . . . . Robots Hopped . | . . . . Cave-ins Triggered . | . . . . Exploration Rate (%) 32 | 4 37 46 41 Regions Visited 3 Branch Regions 1 Pre-discovered Areas 1 | . . . 1 Known Exits Taken 1 | . 1 . . Unknown Exits Taken 2 | 1 . 1 . Scrap Searched . | . . . . Spaces Dug 13 | . 5 8 . Terrain Destroyed 169 | . 119 48 2 Melee 1 | . . 1 . Projectile 2 | . . . 2 AOE 166 | . 119 47 . Terrain Rammed . | . . . . Walls Destroyed . | . . . . Machines Disabled . | . . . . Actions | -11 -10 -9 -9 --------- Run | Yrd Mat Mat Min Total 1062 | 68 272 601 121 Wait 2 | . . 2 . Move 902 | 58 238 490 116 Hop . | . . . . Pick Up 21 | 3 4 14 . Fast Attach 18 | 6 2 10 . Attach 10 | . 2 8 . Detach 2 | . 1 1 . Swap 11 | 1 2 8 . Drop 9 | . 3 6 . Fire 80 | . 20 55 5 Melee 2 | . . 2 . Ram . | . . . . Kick 3 | . . 3 . Crush 2 | . . 2 . Escape Stasis . | . . . . Rewire . | . . . . Trap . | . . . . Miscellaneous . | . . . . Route ------- -11/Scrapyard -10/Materials -9/Materials -9/Mines History --------- Turn | Location | Event 11 | -11/Scrapyard | Discovered new exit (range 16) 83 | -11/Scrapyard | Entered Materials 317 | -10/Materials | Build established: Mutant 535 | -10/Materials | Discovered new exit (range 14) 566 | -10/Materials | Identified exit to Materials 569 | -10/Materials | Entered another Materials area 569 | -9/Materials | Evolved 2 slots: Propulsion x1, Utility x1 805 | -9/Materials | Core integrity fell below 50% 839 | -9/Materials | Lost 7 parts (1p2n4w) 1293 | -9/Materials | Core integrity fell below 20% 1710 | -9/Materials | Discovered new exit (range 9) 1770 | -9/Materials | Entered Mines 1800 | -9/Mines | Learned location of Zion (-7) 1971 | -9/Mines | Destroyed by G-34 Mercenary with Small Laser Last Messages --------------- G-34 Mercenary destroyed. G-47 Trooper Aluminum Leg blasted off. G-47 Trooper destroyed. Acquired 2 matter. Acquired 20 matter. K-01 Serf collects debris. Acquired derelict log, extracted data. World map updated: -7/Zion. A pair of derelicts emerge from the shadows: "We're, um, lost. You wouldn't happen to know the way out of here, would you?" TS OGUYAEEL8W8G/ZMOV&HH3PP4PQYWQSVOL T-07 Excavator is excavating. U-05 Engineer lays Concrete. T-07 Excavator is excavating. G-34 Mercenary misfires. G-34 Mercenary destroyed. System corrupted: Matter fused (-7). Map ----- +----------------------------------------------------+ | ???????????## ????# #???????????????????? | | ????????????## ????# #???????????????????? | | ?????????????#?????# #???????????????????? | | ???????????????????# #???????????????????? | | ???????????????????# #???????????????????? | | ???????????????????# #???????????????????? | | ?????????????# ##### #####???????????????? | | ?????????????# #???????????????? | | ?????????????########## #???????????????? | | ???????????#??????????# ###?????????????? | | ???????????? ?????????# ##???????????? | | ???????????? ?????????# ##???????? | | ????????????# ????????## ##???? ## | | ????????????# ????????## ## ##??? | | ????????????# ???????## #????? | | ????????????# ????### ##????? | | ????????????# ???## ### ## ##?????? | | ????????????# #### ##??####??#??????? | | ????????##### ##????????????????? | | ??????# ##?????????????????? | | ???????# ## ######??????????????????? | | ???????# ###???# #???????????????????????? | | ???????????????# ###?????????????????????? | | ??????????????##gz ##????????????????????? | | ??????????????# #????????????????????? | | ??????????????# @ #????????????????????? | | ?????????????# ##????????????????????? | | ????????????#; gg;#?????????????????????? | | ????????????###% ###?????????????????????? | | ??????????????## #???????????????????????? | | ???????????????# #???????????????????????? | | ???????????????# ????????????????????????? | | ???????????????# ????????????????????????? | | ???????????????# ????????????????????????? | | ???????????????##????????????????????????? | | ?????????????????????????????????????????? | | ?????????????????????????????????????????? | | ?????????????????????????????????????????? | | ?????????????????????????????????????????? | | | | | | | | | | | | | | | | | | | | | | | +----------------------------------------------------+ Best States ------------- Heat Dissipation 28 Energy Generation 12 Energy Capacity 265 Matter Stores 300 Matter Capacity 300 Sight Range 18 Terrain Scan Density 10 Armor Coverage 150 Resistance: KI 20 Evasion (%) 55 Recoil Reduction 3 Item Schematics ----------------- Grenade Launcher | -9/Materials | Scanalyzed Lgt. Assault Rifle | -9/Materials | Scanalyzed Lgt. Treads | -9/Materials | Scanalyzed Robot Schematics ------------------ None Fabricated ------------ Nothing Alien Tech Used ----------------- None Achievements -------------- Use The Force Challenges ------------ None Game ------ Seed IntegrityWardroneTerminator Manual? 0 Play Time 00:24:13 Cumulative 4.6 hours Start 2024.05.31 @ 21:22:54 End 2024.05.31 @ 21:46:22 Sessions 1 Manual Loads 0 Difficulty Rogue Special Mode None Game No. 4 Rogue 4 Adventurer 0 Explorer 0 Win Type - Total 0 Types 0/0/0/0/0/0/0/0/0 Lore% 5 Gallery% 10 Achievement% 11 Wizard Run 0 Options --------- Layout 1 ASCII 0 Keyboard 0 Movement Arrows Keybinds 0 Fullscreen 1 Font 16/SmallcapsGlow Map View 50x40 Zoom Use 0% Tactical HUD 0 Map Filters NONE Filters NONE Steam SD RUN: 72bd4f10-ac9b-4f98-8167-fb6496945826